Cogmind - Beta 15 @@@ ROGUE MODE // 2025.09.16 @ 23:49:16 Player: Lillith Result: Destroyed by S-10 Pest with Light Assault Rifle Performance ------------- Evolutions (0) 0 Regions Visited (2) 400 Robots Destroyed (20) 100 Value Destroyed (671) 671 Prototype IDs (11) 220 Alien Tech Used (0) 0 Bonus (0) 0 TOTAL SCORE: 1391 Bonus ------- None Cogmind --------- Core Integrity 0/250 Matter 288/300 Energy 163/170 System Corruption 0% Temperature Cool (1) Movement Walking (130) Location -10/Subcaves Parts ------- > --- POWER (1) -------- Makeshift Power Source > --- PROPULSION (2) --- Cargo Legs > --- UTILITY (2+2) ---- Large Storage Unit Makeshift Light Armor Plating > --- WEAPON (2) ------- Spread Laser Subdweller Machine Gun > --- INVENTORY (15) --- Subdweller Monowheel Subdweller Monowheel Subdweller Monowheel Makeshift Flight Unit Seismic Detector Makeshift Light Armor Plating Scrap Shield Subdweller Beam Cannon Subdweller Machine Gun Slug Cannon Subdweller Shrapnel Launcher Makeshift Axe Peak State ------------ > --- POWER ------------ Makeshift Power Source > --- PROPULSION ------- Cargo Legs > --- UTILITY ---------- Large Storage Unit Makeshift Light Armor Plating > --- WEAPON ----------- Spread Laser Subdweller Machine Gun > --- INVENTORY -------- Subdweller Monowheel Subdweller Monowheel Makeshift Flight Unit Seismic Detector Makeshift Light Armor Plating Scrap Shield Subdweller Beam Cannon Subdweller Machine Gun Slug Cannon Subdweller Shrapnel Launcher Makeshift Axe [Rating: 32] Favorites ----------- Power Light Ion Engine Engine Light Ion Engine Propulsion Makeshift Leg Treads Light Treads Leg Makeshift Leg Wheel Wheel Utility Large Storage Unit Device Seismic Detector Storage Large Storage Unit Protection Makeshift Light Armor Plating Weapon Spread Laser Energy Gun Spread Laser Ballistic Gun Subdweller Machine Gun Launcher Subdweller Shrapnel Launcher Build | -11 -10 -10 ------- Run | Yrd Mat Sub Slots Evolved . | . . . Power . | . . . Propulsion . | . . . Utility . | . . . Weapon . | . . . Parts Attached 30 | 7 2 21 Power 5 | 1 . 4 Engine 5 | 1 . 4 Core . | . . . Reactor . | . . . Propulsion 8 | 2 . 6 Treads 2 | 1 . 1 Leg 3 | . . 3 Wheel 3 | 1 . 2 Hover . | . . . Flight . | . . . Utility 7 | 2 1 4 Device 3 | 1 . 2 Storage 2 | 1 1 . Processor . | . . . Hackware . | . . . Protection 2 | . . 2 Artifact . | . . . Weapon 10 | 2 1 7 Energy Gun 5 | 1 1 3 Energy Cannon . | . . . Ballistic Gun 4 | 1 . 3 Ballistic Cannon . | . . . Launcher 1 | . . 1 Special Weapon . | . . . Impact Weapon . | . . . Slashing Weapon . | . . . Piercing Weapon . | . . . Special Melee Weapon . | . . . Unidentified Prototypes . | . . . Parts Lost 11 | . . 11 Power 3 | . . 3 Propulsion 5 | . . 5 Utility 1 | . . 1 Weapon 2 | . . 2 Highest Loss Streak 3 | . . 3 To Critical Strikes . | . . . Average Backups 12 | 3 10 13 Power . | . 1 . Propulsion 3 | 1 2 3 Utility 2 | . 1 2 Weapon 6 | . 5 6 Tool/Special . | . . . Unused Backups 17 | . 1 16 Power . | . . . Propulsion 5 | . 1 4 Utility 2 | . . 2 Weapon 9 | . . 9 Tool/Special 1 | . . 1 Average Slot Usage (%) 94 | . 100 94 Engine 13 | . 14 13 Treads 5 | . 14 4 Leg 15 | . . 16 Wheel 5 | . 14 4 Device 4 | . 14 3 Storage 13 | . 14 13 Protection 8 | . . 9 Energy Gun 16 | . 16 16 Ballistic Gun 9 | . 11 8 Launcher 1 | . . 1 Peak Build Rating 32 | 7 9 32 Average Rating 18 | 5 8 20 On Entrance 5 | . 7 9 Naked Turns . | . . . Heaviest Build 41 | 12 29 41 Greatest Support 55 | 20 10 55 Greatest Overweight (x) 3 | 1 2 3 Average Overweight (x) . | . 1 . Largest Inventory Capacity 15 | 8 15 15 Average Capacity 14 | 6 14 15 Most Carried 15 | 6 13 15 Average Carried 13 | 3 10 14 Final Capacity 15 | 8 15 15 Final Carried 13 | 6 13 13 Class Distribution -------------------- 57% | Mutant 42% | Derelict-Mutant Dominant Class ---------------- Mutant | -10/Materials Mutant | -10/Subcaves Resources | -11 -10 -10 ----------- Run | Yrd Mat Sub Matter Collected 677 | 275 29 373 Remotely . | . . . Salvage Created 458 | 95 54 309 Parts 34 | 8 3 23 Haulers Intercepted . | . . . Recyclers Shooed . | . . . Parts Field Recycled . | . . . Retrieved Matter . | . . . Parts Self-Destructed 5 | . . 5 Prevented . | . . . Kills | -11 -10 -10 ------- Run | Yrd Mat Sub Combat Hostiles Destroyed 17 | . 2 15 Guns 17 | . 2 15 Classes Destroyed 5 | 2 1 2 Tunneler 2 | 2 . . Recycler 1 | 1 . . Swarmer 1 | . . 1 Grunt 2 | . 2 . Subdweller 14 | . . 14 Best Kill Streak 2 | 2 2 2 Combat Bots Only 2 | . 2 2 Max Kills in Single Turn 1 | 1 1 1 Gunslinging . | . . . Exploded . | . . . Melee . | . . . Uniques/NPCs Destroyed . | . . . Combat | -11 -10 -10 -------- Run | Yrd Mat Sub Hostile Shots Fired 110 | . 13 97 Missed 31 | . 4 27 Hits 79 | . 9 70 Projectile 79 | . 9 70 Critical Strikes 3 | . . 3 Damage Taken 1594 | . 106 1488 Core 254 | . 10 244 Absorbed by Shields . | . . . Core Remaining (%) 100 | 100 . . Volleys Fired 84 | 5 9 70 Largest 2 | 2 2 2 Hottest 130 | 70 85 130 Shots Fired 149 | 10 18 121 Gun 148 | 10 18 120 Cannon . | . . . Launcher 1 | . . 1 Special . | . . . Kinetic 56 | 5 9 42 Thermal 93 | 5 9 79 Explosive . | . . . Electromagnetic . | . . . Robot Hit Streak 20 | 2 9 20 Robot Miss Streak 5 | 2 3 5 Penetration Max . | . . . Secondary Targets 4 | . 1 3 Max Gunslinging Chain 1 | . 1 1 Shots Hit Robots 111 | 4 15 92 Core Hits 96 | 4 12 80 Critical Kills . | . . . Critical Parts Destroyed . | . . . Critical Strikes 3 | . . 3 Destroy 3 | . . 3 Melee Attacks . | . . . Impact . | . . . Slashing . | . . . Piercing . | . . . Sneak Attacks . | . . . Combat Hostiles . | . . . Follow-up Attacks . | . . . Damage Inflicted 1813 | 47 192 1574 Guns 1699 | 47 192 1460 Cannons . | . . . Explosions 114 | . . 114 Melee . | . . . Ramming . | . . . Kinetic 531 | 10 54 467 Thermal 1282 | 37 138 1107 Explosive . | . . . Electromagnetic . | . . . Impact . | . . . Slashing . | . . . Piercing . | . . . Highest Corruption . | . . . Average Corruption . | . . . Corruption Purged . | . . . Corruption Blocked . | . . . Overload Shots . | . . . Overflow Damage 1 | . . 1 Projectiles . | . . . Explosions 1 | . . 1 Melee . | . . . Knockbacks . | . . . Impact . | . . . Kinetic . | . . . Secondary . | . . . Self-Inflicted Damage 47 | . . 47 Shots 1 | . . 1 Rammed . | . . . Targets Rammed . | . . . Kicked . | . . . Crushed . | . . . Highest Temperature 299 | 40 299 114 Average Temperature 65 | 19 166 24 Received Heat Transfer 171 | . 63 108 Effects 2 | . 2 . Energy Bleed 1 | . 1 . Interference 1 | . 1 . Siege Activations . | . . . Martial Activations . | . . . Shielding Activations . | . . . Robots Disrupted . | . . . Combat Hostiles . | . . . Robots Corrupted . | . . . Combat Hostiles . | . . . Parts Fried . | . . . Impact Corruptions . | . . . Robots Melted . | . . . Combat Hostiles . | . . . Parts Melted 3 | . . 3 Heat Transferred 1747 | 111 170 1466 Parts Sabotaged . | . . . Parts Stolen . | . . . Parts Stripped . | . . . Power Chain Reactions . | . . . Alert | -11 -10 -10 ------- Run | Yrd Mat Sub Maximum Alert Level . | . . . Low Security (%) 100 | 100 100 . Level 1 . | . . . Level 2 . | . . . Level 3 . | . . . Level 4 . | . . . Level 5 . | . . . High Security . | . . . Max Security . | . . . Peak Influence 40 | 5 40 . Initial . | . . . Average 6 | . 10 . Influence Increases 115 | 15 50 50 Destroy 0b10 Robot/C 60 | . 40 20 Destroy 0b10 Robot/NC 15 | 15 . . Destroy Leader 10 | . 10 . Lose Combat Pursuer 30 | . . 30 Influence Decreases 75 | 15 50 10 Time Decay 65 | 15 50 . Lost Part 10 | . . 10 Squads Dispatched . | . . . Investigation . | . . . Extermination . | . . . Reinforcement . | . . . Assault . | . . . Garrison . | . . . Intercept . | . . . Searches Triggered . | . . . Construction Impeded . | . . . Haulers Reinforced . | . . . Active Scanning Responses . | . . . Cargo Convoy Interrupts . | . . . Stealth | -11 -10 -10 --------- Run | Yrd Mat Sub Distress Signals . | . . . Communications Jammed . | . . . Distress Signals . | . . . Times Spotted 22 | . 3 19 Peak Tracking Total 6 | . 3 6 Tactical Retreats 1 | . . 1 Traps | -11 -10 -10 ------- Run | Yrd Mat Sub Traps Triggered 2 | . . 2 Indirectly . | . . . Trap Hack Attempts . | . . . Triggered . | . . . Disarmed . | . . . Reprogrammed . | . . . Reused . | . . . Traps Extracted . | . . . Installed . | . . . Triggered . | . . . Machines | -11 -10 -10 ---------- Run | Yrd Mat Sub Machines Disabled 1 | . . 1 Max in Single Turn 1 | . . 1 Machines Repaired . | . . . Machines Dismantled . | . . . Machines Sabotaged . | . . . Overloaded Fab Kills . | . . . Hacking | -11 -10 -10 --------- Run | Yrd Mat Sub Machines Accessed 1 | . . 1 Terminals . | . . . Fabricators . | . . . Repair Stations . | . . . Recycling Units . | . . . Scanalyzers . | . . . Garrison Access . | . . . Total Hacks 1 | . . 1 Successful 1 | . . 1 Failed . | . . . Catastrophic . | . . . Database Lockouts . | . . . Manual . | . . . Terminals . | . . . Fabricators . | . . . Repair Stations . | . . . Recycling Units . | . . . Scanalyzers . | . . . Garrison Access . | . . . Terminal Hacks 1 | . . 1 Proto ID Catalog 1 | . . 1 Fabricator Hacks . | . . . Repair Station Hacks . | . . . Recycling Unit Hacks . | . . . Scanalyzer . | . . . Garrison Access Hacks . | . . . Unauthorized Hacks . | . . . Terminals . | . . . Fabricators . | . . . Repair Stations . | . . . Recycling Units . | . . . Scanalyzers . | . . . Garrison Access . | . . . Data Cores Recovered . | . . . Used . | . . . Hacking Detections . | . . . Full Trace Events . | . . . Feedback Events . | . . . Feedback Blocked . | . . . Robot Schematics Acquired . | . . . Robots Built . | . . . Authchips . | . . . Time . | . . . Total Robot Build Rating . | . . . Part Schematics Acquired . | . . . Parts Built . | . . . Authchips . | . . . Time . | . . . Total Part Build Rating . | . . . Parts Repaired . | . . . Time . | . . . Parts Recycled . | . . . Recycled Matter . | . . . Retrieved Matter . | . . . Retrieved Components . | . . . Parts Scanalyzed . | . . . Part Schematics Acquired . | . . . Parts Damaged . | . . . Bothacking | -11 -10 -10 ------------ Run | Yrd Mat Sub Used RIF Installer . | . . . Robots Hacked . | . . . Non-combat . | . . . Combat . | . . . Robot Hacks Applied . | . . . Relay Couplers Released . | . . . Fabnet Peak Effective % . | . . . Robots Rewired . | . . . Allies Hacked . | . . . Hacks Repelled . | . . . Allies | -11 -10 -10 -------- Run | Yrd Mat Sub Total Allies . | . . . Largest Group . | . . . Highest-Rated Group . | . . . Highest-Rated Ally . | . . . Total Orders . | . . . Ally Attacks . | . . . Total Damage . | . . . Kills . | . . . Allies Corrupted . | . . . Allies Melted . | . . . Intel | -11 -10 -10 ------- Run | Yrd Mat Sub Active Infowar (turns) 710 | 32 176 502 Optics 166 | . . 166 Seismic 544 | 32 176 336 Robot Analysis Total . | . . . Derelict Logs Recovered 1 | . . 1 Drone Launches . | . . . Drone Recoveries . | . . . Exploration | -11 -10 -10 ------------- Run | Yrd Mat Sub Turns Passed 2566 | 136 176 2254 Spaces Moved 1688 | 81 122 1485 Core 1 | 1 . . Treads 49 | 47 . 2 Legs 1011 | . . 1011 Wheels 627 | 33 122 472 Hover . | . . . Flight . | . . . Fastest Speed 50 | 50 95 110 Average Speed 129 | 130 108 130 Slowest Speed 240 | 160 110 240 Overloaded Moves . | . . . Propulsion Burnouts . | . . . Robots Hopped . | . . . Potential Cave-ins . | . . . Cave-ins Triggered . | . . . Exploration Rate (%) 36 | 6 14 90 Regions Visited 2 Branch Regions 1 Pre-discovered Areas . | . . . Known Exits Taken . | . . . Unknown Exits Taken 2 | 1 1 . Scrap Searched 14 | . . 14 Spaces Dug . | . . . Terrain Destroyed 20 | . . 20 Melee . | . . . Projectile . | . . . AOE 20 | . . 20 Terrain Rammed . | . . . Walls Destroyed . | . . . Machines Disabled . | . . . Actions | -11 -10 -10 --------- Run | Yrd Mat Sub Total 1921 | 98 148 1675 Wait 47 | . 7 40 Move 1686 | 80 121 1485 Hop . | . . . Pick Up 39 | 6 7 26 Fast Attach 9 | 7 . 2 Attach 10 | . . 10 Detach . | . . . Swap 23 | . 3 20 Drop 23 | . 1 22 Fire 84 | 5 9 70 Melee . | . . . Ram . | . . . Kick . | . . . Crush . | . . . Escape Stasis . | . . . Rewire . | . . . Trap . | . . . Miscellaneous . | . . . Route ------- -11/Scrapyard -10/Materials -10/Subcaves (discovered 2 exits: [*Mat x2]) History --------- Turn | Location | Event 36 | -11/Scrapyard | Discovered new exit (range 15) 137 | -11/Scrapyard | Entered Materials 243 | -10/Materials | Discovered new exit (range 15) 304 | -10/Materials | Build established: Mutant 313 | -10/Materials | Entered Subcaves 392 | -10/Subcaves | Discovered new exit (range 10) 423 | -10/Subcaves | Learned 4 Materials zone layouts 479 | -10/Subcaves | A swath of the cavern ceiling suddenly collapsed 575 | -10/Subcaves | Discovered new exit (range 13) 593 | -10/Subcaves | Ambushed by Subdwellers from Twisted Machinery 801 | -10/Subcaves | Shifting Twisted Machinery released Slug Cannon 804 | -10/Subcaves | Shifting Twisted Machinery released Battle Cannon 1111 | -10/Subcaves | Shifting Twisted Machinery released Spk. Treads 1278 | -10/Subcaves | Shifting Twisted Machinery released Sub. Shrapnel Launcher 1386 | -10/Subcaves | Visited 4L-MR0's lab 1408 | -10/Subcaves | Found Cargo Legs 1428 | -10/Subcaves | Build established: Derelict-Mutant 1720 | -10/Subcaves | Core integrity fell below 50% 2005 | -10/Subcaves | Shifting Twisted Machinery released Sub. Monowheel 2227 | -10/Subcaves | Core integrity fell below 20% 2232 | -10/Subcaves | Attached Cargo Legs, gained temporary slots: Utility x2 2260 | -10/Subcaves | Lost 3 parts (1p2n) 2500 | -10/Subcaves | Build established: Mutant 2567 | -10/Subcaves | Destroyed by S-10 Pest with Light Assault Rifle Last Messages --------------- Machinery. 02010_ Acquired 20 matter. 02013_ Dropped Mak. Light Armor Plating. 02015_ Acquired 10 matter. 02223_ Mak. Leg destroyed. 02223_ Destroyed Mak. Leg. 02227_ Mak. Leg destroyed. 02229_ Sub. Power Source destroyed. 02232_ Core temporarily expanded with Utility slot. 02236_ ZF-O6B(R) destroyed. 02236_ Switching to secondary target: L9-YF9(R). 02242_ L9-YF9(R) destroyed. 02250_ Acquired 23 matter. 02271_ Acquired Sub. Machine Gun. 02280_ Acquired Sub. Monowheel. 02521_ Acquired 35 matter. 02523_ Acquired 7 matter. 02562_ Sub. Machine Gun destroyed. 02563_ S-10 Pest destroyed. Map ----- +----------------------------------------------------+ | ???????????????????????# [ ##??## ## | | ???????????????????????#&&### ######## | | ???????????????????????#& #### #### ""# | | ???????????????????????# % #?#" " | | ???????????????????????##&##?## ###### | | ????????????????????????#%#??##" #####????## | | ???????????????????????##&##?#"" ####???????### | | ???????????????????????# & ###""" ##????????# | | ??????????????????????### #"###""""" #????????# | | ?????????????????????## " #?##"""" ##???????## | | ?????????????????????# " #??###"" #####????## | | ?????????????????????# " #????# ##????## | | ????????????????????## " "##????## ##????? | | ????????????????????# ####????## #????? | | ????????????????????### # #" ### #####????# | | ??????????????????????# < #?## #???????## | | ??????????????????????#"" # #### #?# #???????# | | ??????????????????????##" ###????????####??????## | | ??????????????????????##%%%##??????????????????# | | ??????????????????????#& !&&##?????????????????# | | ??????????????????##??# & #???????? ???????# | | ??????????????????# ### " #?????? ???????# | | ??????????????????# "" ""##???? "?????## | | ??????????????????# " ""##??? ??????# # | | ??????????????????# "" ##? ??????????# #? | | ??????????????????# " @## #??????????#### #? | | ??????????????????##" ## =s[ #??????????# #? | | ???????????????????## ####s #?????????# ## | | ???????????????????## #?### < ####?####???# # | | ???????????????????# ##????# # ### ##### | | ???????????????????# ##????# ### | | ???????????????????## #???## #####?? | | ????????????????????# #?### ## #####???### | | ??????????????????### ### #? ### #??????## | | ???????????????#### ## ## ## ###???## | | ???????????????# %### ## ###?# | | ???????????????# # #" # ### ### | | ???????????????## & ##?# ### | | ???????????????#% "##" #### #### | | ???????????????# %## #?#### #??## | | ???????????????######## #### #????## #???? | | ??????????????????????##%##??## #?????## #???? | | ???????????????????????# #???# #?????## #???? | | ??????????????????????#"##???### ####### ####? | | ?????????????????????#""???????## ## ## | | ????????????????????##""????????## ## | | ???????????????????# #"#?????????# ## ## | | ??????????????????# "" ?????????#### ### ## | | ????????????????? ### ????????????# #?# # # | | ???????????????? & ?#?????????????# #?# | +----------------------------------------------------+ Best States ------------- Heat Dissipation 25 Energy Generation 15 Energy Capacity 200 Matter Stores 300 Matter Capacity 300 Sight Range 21 Terrain Scan Density 10 Armor Coverage 100 Evasion (%) 55 Recoil Reduction 1 Item Schematics ----------------- None Robot Schematics ------------------ None Fabricated ------------ Nothing Repaired ---------- Nothing Alien Tech Used ----------------- None Achievements -------------- None Challenges ------------ None Game ------ Seed AntigravGaussScythe Manual? 0 Play Time 00:20:19 Cumulative 57.4 hours Start 2025.09.16 @ 23:28:29 End 2025.09.16 @ 23:49:16 Sessions 1 Manual Loads 0 Difficulty Rogue Special Mode None Game No. 108 Rogue 108 Adventurer 0 Explorer 0 Win Type - Total 0 Types 0/0/0/0/0/0/0/0/0/0 Lore% 48 Gallery% 33 Achievement% 31 Wizard Run 0 Options --------- Layout 2 ASCII 0 Keyboard 1 Movement Arrows Keybinds 0 Fullscreen 2 Font 32/SmallcapsGlow Map View 50x44 Zoom Use 0% Tactical HUD 1 Map Filters NONE Filters NONE Steam 1 RUN: 6165595a-7e5e-467c-9f01-45cf4bb41087